fUST/lending_fUST_20241217
["ID","MTS","AMOUNT","RATE_DAILY","PERIOD"]
[345693607,1734425464112,-575.79,0.00025479,6]
[345693608,1734425464122,-2583.97,0.00025479,6]
[345693609,1734425464132,-151.0,0.00025479,7]
[345693610,1734425464142,-500.0,0.00025479,6]
[345693611,1734425464154,-151.0,0.00025479,7]
[345693612,1734425464165,-2014.3,0.00025479,6]
[345693613,1734425464175,-500.0,0.00025479,6]
[345693614,1734425464186,-500.0,0.00025479,6]
[345693615,1734425464197,-2930.53,0.00025479,6]
[345693616,1734425464208,-1269.94,0.00025479,6]
[345693617,1734425464219,-500.0,0.00025479,6]
[345693618,1734425464230,-151.0,0.00025479,7]
[345693619,1734425464241,-1348.48,0.00025479,6]
[345693620,1734425464250,-151.0,0.00025479,7]
[345693621,1734425464260,-681.759088,0.00025479,7]
[345693622,1734425464270,-681.759088,0.00025479,7]
[345693623,1734425464280,-2750.29,0.00025479,6]
[345693624,1734425464290,-500.0,0.00025479,6]
[345693625,1734425464300,-681.759088,0.00025479,7]
[345693626,1734425464310,-681.759087,0.00025479,7]
[345693627,1734425464320,-1000.0,0.00025479,2]
[345693628,1734425464331,-4791.386794,0.00025479,7]
[345693629,1734425464342,-500.0,0.00025479,6]
[345693630,1734425464351,-4791.386794,0.00025479,7]
[345693631,1734425464361,-500.0,0.00025479,6]
[345693632,1734425464372,-500.0,0.00025479,6]
[345693633,1734425464383,-4791.386794,0.00025479,7]
[345693634,1734425464393,-4791.386786,0.00025479,7]
[345693635,1734425464406,-500.0,0.00025479,6]
[345693636,1734425464416,-500.0,0.00025479,6]
[345693637,1734425464427,-151.0,0.00025479,7]
[345693638,1734425464439,-151.0,0.00025479,7]
[345693639,1734425464450,-533.15,0.00025479,6]
[345693640,1734425464461,-9848.96,0.00025479,6]
[345693641,1734425464471,-500.0,0.00025479,6]
[345693642,1734425464482,-1209.14,0.00025479,6]
[345693643,1734425464493,-500.0,0.00025479,6]
[345693644,1734425464503,-1946.88,0.00025479,6]
[345693645,1734425464514,-767.04,0.00025479,6]
[345693646,1734425464524,-1034.10644,0.00025479,7]
[345693647,1734425464534,-1772.16,0.00025479,6]
[345693648,1734425464543,-1034.10644,0.00025479,7]
[345693649,1734425464553,-500.0,0.00025479,6]
[345693650,1734425464563,-7645.04,0.00025479,6]
[345693651,1734425464573,-500.0,0.00025479,6]
[345693652,1734425464583,-1034.10644,0.00025479,7]
[345693653,1734425464593,-500.0,0.00025479,6]
[345693654,1734425464604,-1034.10645,0.00025479,7]
[345693655,1734425464613,-500.0,0.00025479,6]
[345693656,1734425464624,-500.0,0.00025479,6]
[345693657,1734425464635,-500.0,0.00025479,6]
[345693658,1734425464645,-1597.26,0.00025479,6]
[345693659,1734425464656,-797.56,0.00025479,6]
[345693660,1734425464667,-500.0,0.00025479,6]
[345693661,1734425464677,-545.67,0.00025479,6]
[345693662,1734425464687,-500.0,0.00025479,6]
[345693663,1734425464697,-500.0,0.00025479,6]
[345693664,1734425464709,-500.0,0.00025479,6]
[345693665,1734425464720,-1005.81,0.00025479,6]
[345693666,1734425464730,-2524.67,0.00025479,6]
[345693667,1734425464740,-11798.48,0.00025479,6]
[345693668,1734425464750,-500.0,0.00025479,6]
[345693669,1734425464760,-500.0,0.00025479,6]
[345693670,1734425464770,-500.0,0.00025479,6]
[345693671,1734425464780,-381.42620154,0.00025479,6]
[345693672,1734425464791,-13005.34,0.00025479,6]
[345693673,1734425464801,-500.0,0.00025479,6]
[345693674,1734425464811,-500.0,0.00025479,6]
[345693675,1734425464821,-422.871451,0.00025479,7]
[345693676,1734425464831,-422.871451,0.00025479,7]
[345693677,1734425464840,-500.0,0.00025479,6]
[345693678,1734425464850,-1161.3,0.00025479,6]
[345693679,1734425464860,-1000.0,0.00025479,6]
[345693680,1734425464870,-898.82,0.00025479,6]
[345693681,1734425464880,-422.871451,0.00025479,7]
[345693682,1734425464890,-422.871448,0.00025479,7]
[345693683,1734425464899,-2222.06,0.00025479,6]
[345693684,1734425464911,-500.0,0.00025479,6]
[345693685,1734425464927,-500.0,0.00025479,6]
[345693686,1734425464937,-500.0,0.00025479,6]
[345693687,1734425464947,-587.54,0.00025479,6]
[345693688,1734425464957,-330.20693358,0.00025479,6]
[345693689,1734425464967,-766.57,0.00025479,6]
[345693690,1734425464976,-1986.82,0.00025479,6]
[345693691,1734425464986,-500.0,0.00025479,6]
[345693692,1734425464995,-500.0,0.00025479,6]
[345693693,1734425465005,-500.0,0.00025479,6]
[345693694,1734425465015,-2908.71,0.00025479,6]
[345693695,1734425465024,-1835.4,0.00025479,6]
[345693696,1734425465033,-500.0,0.00025479,6]
[345693697,1734425465043,-500.0,0.00025479,6]
[345693698,1734425465053,-385.29093451,0.00025479,6]
[345693699,1734425465063,-500.0,0.00025479,6]
[345693700,1734425465073,-500.0,0.00025479,6]
[345693701,1734425465083,-500.0,0.00025479,6]
[345693702,1734425465092,-500.0,0.00025479,6]
[345693703,1734425465102,-1590.67,0.00025479,6]
[345693704,1734425465112,-1447.05,0.00025479,6]
[345693705,1734425465123,-500.0,0.00025479,6]
[345693706,1734425465132,-151.0,0.00025479,7]
[345693707,1734425465142,-19653.15,0.00025479,6]
[345693708,1734425465152,-500.0,0.00025479,6]
[345693709,1734425465163,-500.0,0.00025479,2]
[345693710,1734425465172,-500.0,0.00025479,6]
[345693711,1734425465183,-519.52993792,0.00025479,6]
[345693712,1734425465192,-500.0,0.00025479,6]
[345693713,1734425465201,-2231.36,0.00025479,6]
[345693714,1734425465211,-500.0,0.00025479,6]
[345693715,1734425465221,-500.0,0.00025479,6]
[345693716,1734425465231,-511.08,0.00025479,6]
[345693717,1734425465241,-674.27,0.00025479,6]
[345693718,1734425465250,-519.94,0.00025479,6]
[345693719,1734425465260,-786.6,0.00025479,6]
[345693720,1734425465270,-1619.42,0.00025479,6]
[345693721,1734425465280,-594.43822785,0.00025479,6]
[345693722,1734425465289,-1741.45,0.00025479,6]
[345693723,1734425465298,-500.0,0.00025479,6]
[345693724,1734425465308,-640.57,0.00025479,6]
[345693725,1734425465318,-3147.67,0.00025479,6]
[345693726,1734425465327,-151.0,0.00025479,7]
[345693727,1734425465337,-339.519478,0.00025479,7]
[345693728,1734425465347,-339.519478,0.00025479,7]
[345693729,1734425465357,-500.0,0.00025479,6]
[345693730,1734425465373,-339.519478,0.00025479,7]
[345693731,1734425465384,-500.0,0.00025479,6]
[345693732,1734425465395,-339.519476,0.00025479,7]
[345693733,1734425465410,-200.0,0.00025479,6]
[345693734,1734425465421,-246.329835,0.00025479,7]
[345693735,1734425465431,-500.0,0.00025479,6]
[345693736,1734425465442,-246.329838,0.00025479,7]
[345693737,1734425465452,-202.92167443,0.00025479,6]
[345693738,1734425465462,-500.0,0.00025479,6]
[345693739,1734425465472,-2994.03,0.00025479,6]
[345693740,1734425465481,-520.92,0.00025479,6]
[345693741,1734425465491,-993.66,0.00025479,6]
[345693742,1734425465501,-785.03,0.00025479,6]
[345693743,1734425465511,-500.0,0.00025479,6]
[345693744,1734425465521,-500.0,0.00025479,6]
[345693745,1734425465531,-6877.67,0.00025479,6]
[345693746,1734425465540,-500.0,0.00025479,6]
[345693747,1734425465550,-1814.14,0.00025479,6]
[345693748,1734425465560,-500.0,0.00025479,6]
[345693749,1734425465569,-1200.6,0.00025479,6]
[345693750,1734425465579,-500.0,0.00025479,6]
[345693751,1734425465589,-500.0,0.00025479,6]
[345693752,1734425465599,-500.0,0.00025479,6]
[345693753,1734425465608,-2708.04,0.00025479,6]
[345693754,1734425465617,-500.0,0.00025479,6]
[345693755,1734425465729,-16840.02,0.00025479,5]
[345693756,1734425465739,-500.0,0.00025479,6]
[345693757,1734425465749,-500.0,0.00025479,6]
[345693758,1734425465759,-500.0,0.00025479,6]
[345693759,1734425465769,-500.0,0.00025479,6]
[345693760,1734425465779,-1033.64,0.00025479,6]
[345693761,1734425465788,-860.74,0.00025479,6]
[345693762,1734425465798,-2022.44,0.00025479,6]
[345693763,1734425465808,-500.0,0.00025479,6]
[345693764,1734425465818,-49051.97,0.00025479,6]
[345693765,1734425465828,-500.0,0.00025479,6]
[345693766,1734425465837,-500.0,0.00025479,6]
[345693767,1734425465847,-1256.94,0.00025479,6]
[345693768,1734425465857,-3068.04,0.00025479,6]
[345693769,1734425465866,-500.0,0.00025479,6]
[345693770,1734425465876,-500.0,0.00025479,6]
[345693771,1734425465886,-3944.32,0.00025479,6]
[345693772,1734425465896,-1160.07,0.00025479,6]
[345693773,1734425465907,-500.0,0.00025479,6]
[345693774,1734425465917,-867.7,0.00025479,6]
[345693775,1734425465926,-500.0,0.00025479,6]
[345693776,1734425465935,-244.0,0.00025499,2]
[345693777,1734425465945,-151.0,0.000255,12]
[345693778,1734425465954,-162.6671547,0.00025521,2]
[345693779,1734425465964,-1000.0,0.00025521,2]
[345693780,1734425465974,-1000.0,0.00025521,2]
[345693781,1734425465983,-222.0,0.00025561,6]
[345693782,1734425465993,-654.80350089,0.00025567,2]
[345693783,1734425466002,-420.0,0.00025581,2]
[345693784,1734425466012,-151.0,0.000256,12]
[345693785,1734425466021,-12235.02,0.000256,2]
[345693786,1734425466031,-153.1872232,0.00025671,2]
[345693787,1734425466040,-153.0,0.00025671,2]
[345693788,1734425466050,-213.8615731,0.00025671,2]
[345693789,1734425466059,-213.8615731,0.00025671,2]
[345693790,1734425466069,-213.8615731,0.00025671,2]
[345693791,1734425466079,-213.8615731,0.00025671,2]
[345693792,1734425466089,-213.8615731,0.00025671,2]
[345693793,1734425466100,-213.8615731,0.00025671,2]
[345693794,1734425466109,-2406.11275176,0.00025729,2]
[345693795,1734425466119,-222.0,0.00025752,6]
[345693796,1734425466128,-477.87452519,0.00025753,6]
[345693797,1734425466137,-500.0,0.00025753,6]
[345693798,1734425466146,-1346.19,0.00025753,6]
[345693799,1734425466157,-500.0,0.00025753,6]
[345693800,1734425466167,-500.0,0.00025753,6]
[345693801,1734425466176,-500.0,0.00025753,6]
[345693802,1734425466186,-500.0,0.00025753,6]
[345693803,1734425466196,-151.0,0.00025753,7]
[345693804,1734425466206,-500.0,0.00025753,6]
[345693805,1734425466215,-500.0,0.00025753,6]
[345693806,1734425466225,-500.0,0.00025753,6]
[345693807,1734425466235,-326.29,0.00025753,6]
[345693808,1734425466244,-500.0,0.00025753,6]
[345693809,1734425466254,-500.0,0.00025753,6]
[345693810,1734425466263,-500.0,0.00025753,6]
[345693811,1734425466273,-500.0,0.00025753,6]
[345693812,1734425466283,-500.0,0.00025753,6]
[345693813,1734425466292,-500.0,0.00025753,6]
[345693814,1734425466302,-500.0,0.00025753,6]
[345693815,1734425466311,-500.0,0.00025753,6]
[345693816,1734425466321,-500.0,0.00025753,6]
[345693817,1734425466330,-1046.35,0.00025753,6]
[345693818,1734425466340,-559.4,0.00025753,6]
[345693819,1734425466350,-500.0,0.00025753,6]
[345693820,1734425466360,-227.49051592,0.00025753,6]
[345693821,1734425466370,-500.0,0.00025753,6]
[345693822,1734425466380,-500.0,0.00025753,6]
[345693823,1734425466390,-452.412359,0.00025753,7]
[345693824,1734425466399,-452.412359,0.00025753,7]
[345693825,1734425466411,-500.0,0.00025753,6]
[345693826,1734425466420,-699.91,0.00025753,6]
[345693827,1734425466431,-500.0,0.00025753,6]
[345693828,1734425466441,-500.0,0.00025753,6]
[345693829,1734425466450,-500.0,0.00025753,6]
[345693830,1734425466460,-500.0,0.00025753,6]
[345693831,1734425466470,-500.0,0.00025753,6]
[345693832,1734425466479,-504.47533994,0.00025753,6]
[345693833,1734425466489,-500.0,0.00025753,6]
[345693834,1734425466499,-500.0,0.00025753,7]
[345693835,1734425466508,-500.0,0.00025753,7]
[345693836,1734425466518,-500.0,0.00025753,7]
[345693837,1734425466528,-500.0,0.00025753,7]
[345693838,1734425466538,-500.0,0.00025753,7]
[345693839,1734425466548,-500.0,0.00025753,7]
[345693840,1734425466558,-1151.74,0.00025753,6]
[345693841,1734425466568,-500.0,0.00025753,7]
[345693842,1734425466578,-500.0,0.00025753,7]
[345693843,1734425466588,-539.85521688,0.00025753,7]
[345693844,1734425466598,-365.549825,0.00025753,7]
[345693845,1734425466608,-209.840349,0.00025753,7]
[345693846,1734425466617,-500.0,0.00025753,6]
[345693847,1734425466628,-365.549825,0.00025753,7]
[345693848,1734425466642,-500.0,0.00025753,6]
[345693849,1734425466652,-500.0,0.00025753,6]
[345693850,1734425466662,-1066.69,0.00025753,6]
[345693851,1734425466672,-280.971394,0.00025753,7]
[345693852,1734425466683,-280.971394,0.00025753,7]
[345693853,1734425466692,-500.0,0.00025753,6]
[345693854,1734425466701,-151.0,0.00025753,7]
[345693855,1734425466714,-151.0,0.00025753,7]
[345693856,1734425466724,-151.0,0.00025753,7]
[345693857,1734425466734,-500.0,0.00025753,6]
[345693858,1734425466744,-500.0,0.00025753,6]
[345693859,1734425466754,-500.0,0.00025753,6]
[345693860,1734425466764,-500.0,0.00025753,6]
[345693861,1734425466774,-500.0,0.00025753,6]
[345693862,1734425466783,-500.0,0.00025753,6]
[345693863,1734425466793,-2685.45,0.00025753,6]
[345693864,1734425466803,-500.0,0.00025753,6]
[345693865,1734425466813,-233.5361,0.00025753,7]
[345693866,1734425466823,-1265.022856,0.00025753,7]
[345693867,1734425466832,-233.5361,0.00025753,7]
[345693868,1734425466842,-1355.741923,0.00025753,7]
[345693869,1734425466852,-472.56,0.00025753,6]
[345693870,1734425466861,-1355.74191314,0.00025753,7]
[345693871,1734425466871,-1289.7,0.00025753,6]
[345693872,1734425466881,-503.54074614,0.00025753,6]
[345693873,1734425466891,-500.0,0.00025753,6]
[345693874,1734425466901,-151.0,0.00025753,7]
[345693875,1734425466915,-526.38,0.00025753,6]
[345693876,1734425466924,-821.52,0.00025753,6]
[345693877,1734425466934,-500.0,0.00025753,6]
[345693878,1734425466943,-372.26323,0.00025753,7]
[345693879,1734425466953,-500.0,0.00025753,6]
[345693880,1734425466963,-372.263229,0.00025753,7]
[345693881,1734425466974,-500.0,0.00025753,6]
[345693882,1734425466984,-221.301381,0.00025753,7]
[345693883,1734425466993,-151.0,0.00025753,7]
[345693884,1734425467003,-500.0,0.00025753,6]
[345693885,1734425467013,-221.301383,0.00025753,7]
[345693886,1734425467023,-500.0,0.00025753,6]
[345693887,1734425467032,-512.71583035,0.00025753,6]
[345693888,1734425467041,-500.0,0.00025753,6]
[345693889,1734425467051,-566.29,0.00025753,6]
[345693890,1734425467061,-500.0,0.00025753,6]
[345693891,1734425467071,-3000.0,0.00025753,30]
[345693892,1734425467080,-500.0,0.00025753,6]
[345693893,1734425467090,-940.29,0.00025753,6]
[345693894,1734425467099,-500.0,0.00025753,6]
[345693895,1734425467109,-500.0,0.00025753,6]
[345693896,1734425467119,-500.0,0.00025753,6]
[345693897,1734425467129,-500.0,0.00025753,6]
[345693898,1734425467139,-663.0,0.00025753,6]
[345693899,1734425467149,-588.44,0.00025753,6]
[345693900,1734425467159,-151.0,0.00025753,7]
[345693901,1734425467169,-500.0,0.00025753,6]
[345693902,1734425467179,-500.0,0.00025753,6]
[345693903,1734425467189,-500.0,0.00025753,6]
[345693904,1734425467199,-1115.27,0.00025753,6]
[345693905,1734425467302,-500.0,0.00025753,6]
[345693906,1734425467311,-1532.092553,0.00025753,7]
[345693907,1734425467322,-1640.54,0.00025753,6]
[345693908,1734425467332,-1532.092545,0.00025753,7]
[345693909,1734425467342,-500.0,0.00025753,6]
[345693910,1734425467352,-344.71,0.00025753,6]
[345693911,1734425467363,-624.84,0.00025753,6]
[345693912,1734425467373,-505.61860083,0.00025753,6]
[345693913,1734425467383,-1154.08,0.00025753,6]
[345693914,1734425467392,-246.24721818,0.00025753,6]
[345693915,1734425467403,-553.96,0.00025753,6]
[345693916,1734425467416,-500.0,0.00025753,6]
[345693917,1734425467426,-500.0,0.00025753,6]
[345693918,1734425467436,-500.0,0.00025753,6]
[345693919,1734425467445,-500.0,0.00025753,6]
[345693920,1734425467455,-500.0,0.00025753,6]
[345693921,1734425467465,-2570.21,0.00025753,6]
[345693922,1734425467474,-3679.622367,0.00025753,7]
[345693923,1734425467485,-2341.25,0.00025753,6]
[345693924,1734425467495,-3679.622373,0.00025753,7]
[345693925,1734425467506,-500.0,0.00025753,6]
[345693926,1734425467516,-500.0,0.00025753,6]
[345693927,1734425467525,-500.0,0.00025753,6]
[345693928,1734425467535,-1349.25,0.00025753,6]
[345693929,1734425467545,-500.0,0.00025753,6]
[345693930,1734425467555,-203.47930135,0.00025753,6]
[345693931,1734425467565,-151.0,0.00025753,7]
[345693932,1734425467575,-500.0,0.00025753,6]
[345693933,1734425467584,-458.918002,0.00025753,7]
[345693934,1734425467594,-458.917999,0.00025753,7]
[345693935,1734425467604,-2683.86,0.00025753,2]
[345693936,1734425467614,-500.0,0.00025753,6]
[345693937,1734425467625,-500.0,0.00025753,6]
[345693938,1734425467638,-711.12,0.00025753,6]
[345693939,1734425467648,-571.82,0.00025753,6]
[345693940,1734425467660,-1179.6,0.00025753,6]
[345693941,1734425467671,-500.0,0.00025753,6]
[345693942,1734425467681,-1039.11,0.00025753,6]
[345693943,1734425467691,-500.0,0.00025753,6]
[345693944,1734425467700,-500.0,0.00025753,6]
[345693945,1734425467712,-500.0,0.00025753,6]
[345693946,1734425467722,-500.0,0.00025753,6]
[345693947,1734425467731,-550.4,0.00025753,6]
[345693948,1734425467741,-500.0,0.00025753,6]
[345693949,1734425467751,-500.0,0.00025753,6]
[345693950,1734425467760,-2607.46,0.00025753,6]
[345693951,1734425467770,-2159.6,0.00025753,6]
[345693952,1734425467779,-500.0,0.00025753,6]
[345693953,1734425467789,-500.0,0.00025753,6]
[345693954,1734425467798,-2614.97,0.00025753,6]
[345693955,1734425467808,-500.0,0.00025753,6]
[345693956,1734425467818,-1843.61,0.00025753,6]
[345693957,1734425467828,-534.57,0.00025753,6]
[345693958,1734425467837,-2154.71,0.00025753,6]
[345693959,1734425467847,-500.0,0.00025753,6]
[345693960,1734425467857,-1662.29,0.00025753,6]
[345693961,1734425467867,-500.0,0.00025753,6]
[345693962,1734425467876,-1116.44,0.00025753,6]
[345693963,1734425467886,-500.0,0.00025753,6]
[345693964,1734425467896,-500.0,0.00025753,2]
[345693965,1734425467906,-500.0,0.00025753,6]
[345693966,1734425467916,-598.41,0.00025753,6]
[345693967,1734425467926,-500.0,0.00025753,6]
[345693968,1734425467935,-689.3,0.00025753,6]
[345693969,1734425467945,-500.0,0.00025753,6]
[345693970,1734425467955,-1514.93,0.00025753,6]
[345693971,1734425467964,-500.0,0.00025753,6]
[345693972,1734425467974,-721.4,0.00025753,6]
[345693973,1734425467983,-500.0,0.00025753,6]
[345693974,1734425468005,-500.0,0.00025753,6]
[345693975,1734425468022,-500.0,0.00025753,6]
[345693976,1734425468040,-759.68,0.00025753,6]
[345693977,1734425468059,-2476.05,0.00025753,6]
[345693978,1734425468077,-502.65,0.00025753,6]
[345693979,1734425468097,-500.0,0.00025753,6]
[345693980,1734425468114,-585.84,0.00025753,6]
[345693981,1734425468130,-993.19,0.00025753,2]
[345693982,1734425468150,-514.41,0.00025753,6]
[345693983,1734425468173,-500.0,0.00025753,6]
[345693984,1734425468188,-637.23,0.00025753,6]
[345693985,1734425468203,-500.0,0.00025753,6]
[345693986,1734425468222,-500.0,0.00025753,6]
[345693987,1734425468239,-881.35,0.00025753,6]
[345693988,1734425468253,-619.38,0.00025753,6]
[345693989,1734425468270,-843.07,0.00025753,6]
[345693990,1734425468286,-430.05341113,0.00025753,6]
[345693991,1734425468303,-709.2,0.00025753,6]
[345693992,1734425468319,-500.0,0.00025753,6]
[345693993,1734425468334,-500.0,0.00025753,6]
[345693994,1734425468350,-2676.8,0.00025753,6]
[345693995,1734425468365,-2137.81,0.00025753,6]
[345693996,1734425468381,-500.0,0.00025753,6]
[345693997,1734425468398,-500.0,0.00025753,6]
[345693998,1734425468416,-500.0,0.00025753,6]
[345693999,1734425468438,-3558.12,0.00025753,6]
[345694000,1734425468453,-500.0,0.00025753,6]
[345694001,1734425468469,-500.0,0.00025753,6]
[345694002,1734425468484,-500.0,0.00025753,6]
[345694003,1734425468499,-507.52,0.00025753,6]
[345694004,1734425468516,-575.79,0.00025753,6]
[345694005,1734425468530,-2583.97,0.00025753,6]
[345694006,1734425468546,-500.0,0.00025753,6]
[345694007,1734425468561,-2014.3,0.00025753,6]
[345694008,1734425468576,-500.0,0.00025753,6]
[345694009,1734425468591,-155.63929464,0.00025753,6]
[345694010,1734425468608,-2930.53,0.00025753,6]
[345694011,1734425468624,-1269.94,0.00025753,6]
[345694012,1734425468642,-500.0,0.00025753,6]
[345694013,1734425468657,-1348.48,0.00025753,6]
[345694014,1734425468672,-2750.29,0.00025753,6]
[345694015,1734425468686,-500.0,0.00025753,6]
[345694016,1734425468702,-1000.0,0.00025753,2]
[345694017,1734425468718,-500.0,0.00025753,6]
[345694018,1734425468732,-500.0,0.00025753,6]
[345694019,1734425468747,-500.0,0.00025753,6]
[345694020,1734425468761,-500.0,0.00025753,6]
[345694021,1734425468776,-500.0,0.00025753,6]
[345694022,1734425468789,-533.15,0.00025753,6]
[345694023,1734425468804,-9848.96,0.00025753,6]
[345694024,1734425468818,-587.82,0.00025753,6]
[345694025,1734425468832,-1209.14,0.00025753,6]
[345694026,1734425468848,-500.0,0.00025753,6]
[345694027,1734425468863,-1946.88,0.00025753,6]
[345694028,1734425468878,-767.04,0.00025753,6]
[345694029,1734425468892,-1772.16,0.00025753,6]
[345694030,1734425468907,-500.0,0.00025753,6]
[345694031,1734425468921,-7645.04,0.00025753,6]
[345694032,1734425468936,-500.0,0.00025753,6]
[345694033,1734425468951,-500.0,0.00025753,6]
[345694034,1734425468966,-500.0,0.00025753,6]
[345694035,1734425468980,-500.0,0.00025753,6]
[345694036,1734425468994,-1597.26,0.00025753,6]
[345694037,1734425469008,-797.56,0.00025753,6]
[345694038,1734425469023,-500.0,0.00025753,6]
[345694039,1734425469036,-500.0,0.00025753,6]
[345694040,1734425469051,-545.67,0.00025753,6]
[345694041,1734425469067,-500.0,0.00025753,6]
[345694042,1734425469202,-500.0,0.00025753,6]
[345694043,1734425469220,-500.0,0.00025753,6]
[345694044,1734425469229,-1005.81,0.00025753,6]
[345694045,1734425469239,-2524.67,0.00025753,6]
[345694046,1734425469249,-11798.48,0.00025753,6]
[345694047,1734425469259,-500.0,0.00025753,6]
[345694048,1734425469270,-525.26960075,0.00025753,6]
[345694049,1734425469280,-500.0,0.00025753,6]
[345694050,1734425469290,-13005.34,0.00025753,6]
[345694051,1734425469300,-500.0,0.00025753,6]
[345694052,1734425469309,-500.0,0.00025753,6]
[345694053,1734425469319,-1161.3,0.00025753,6]
[345694054,1734425469329,-1000.0,0.00025753,6]
[345694055,1734425469339,-898.82,0.00025753,6]
[345694056,1734425469349,-2222.06,0.00025753,6]
[345694057,1734425469359,-500.0,0.00025753,6]
[345694058,1734425469369,-500.0,0.00025753,6]
[345694059,1734425469379,-500.0,0.00025753,6]
[345694060,1734425469389,-587.54,0.00025753,6]
[345694061,1734425469399,-766.57,0.00025753,6]
[345694062,1734425469409,-1986.82,0.00025753,6]
[345694063,1734425469419,-500.0,0.00025753,6]
[345694064,1734425469429,-500.0,0.00025753,6]
[345694065,1734425469438,-500.0,0.00025753,6]
[345694066,1734425469448,-2908.71,0.00025753,6]
[345694067,1734425469458,-500.0,0.00025753,6]
[345694068,1734425469467,-1835.4,0.00025753,6]
[345694069,1734425469477,-500.0,0.00025753,6]
[345694070,1734425469487,-500.0,0.00025753,6]
[345694071,1734425469496,-471.87993856,0.00025753,6]
[345694072,1734425469506,-500.0,0.00025753,6]
[345694073,1734425469516,-1590.67,0.00025753,6]
[345694074,1734425469525,-1447.05,0.00025753,6]
[345694075,1734425469535,-19653.15,0.00025753,6]
[345694076,1734425469544,-500.0,0.00025753,6]
[345694077,1734425469554,-500.0,0.00025753,6]
[345694078,1734425469564,-500.0,0.00025753,6]
[345694079,1734425469574,-2231.36,0.00025753,6]
[345694080,1734425469584,-500.0,0.00025753,6]
[345694081,1734425469594,-500.0,0.00025753,6]
[345694082,1734425469604,-511.08,0.00025753,6]
[345694083,1734425469614,-674.27,0.00025753,6]
[345694084,1734425469625,-519.94,0.00025753,6]
[345694085,1734425469638,-786.6,0.00025753,6]
[345694086,1734425469647,-1619.42,0.00025753,6]
[345694087,1734425469658,-1741.45,0.00025753,6]
[345694088,1734425469669,-619.70338566,0.00025753,6]
[345694089,1734425469679,-640.57,0.00025753,6]
[345694090,1734425469689,-3147.67,0.00025753,6]
[345694091,1734425469699,-500.0,0.00025753,6]
[345694092,1734425469710,-500.0,0.00025753,6]
[345694093,1734425469720,-200.0,0.00025753,6]
[345694094,1734425469730,-500.0,0.00025753,6]
[345694095,1734425469739,-500.0,0.00025753,6]
[345694096,1734425469749,-2994.03,0.00025753,6]
[345694097,1734425469758,-520.92,0.00025753,6]
[345694098,1734425469768,-993.66,0.00025753,6]
[345694099,1734425469779,-785.03,0.00025753,6]
[345694100,1734425469788,-6877.67,0.00025753,6]
[345694101,1734425469798,-500.0,0.00025753,6]
[345694102,1734425469807,-1814.14,0.00025753,6]
[345694103,1734425469817,-194.77690038,0.00025753,6]
[345694104,1734425469827,-1200.6,0.00025753,6]
[345694105,1734425469837,-410.81920512,0.00025753,6]
[345694106,1734425469847,-500.0,0.00025753,6]